[Event "Early-Titled-Tuesday-Blitz-November-28-2023"]
[Site "Chess.com"]
[Date "2023.11.28"]
[Round "9"]
[White "GMJustin"]
[Black "AccioChess"]
[Result "1-0"]
[WhiteElo "2317"]
[BlackElo "2473"]
[TimeControl "180+1"]
[EndTime "9:52:37 PST"]
[Termination "GMJustin won by checkmate"]

1. e4 {[%clk 0:02:43.7]} 1... c5 {[%clk 0:02:59.1]} 2. Ne2 {[%clk 0:02:43.2]}
2... d6 {[%clk 0:02:59.6]} 3. Nbc3 {[%clk 0:02:41.4]} 3... Nf6 {[%clk
0:02:59.5]} 4. d4 {[%clk 0:02:40.6]} 4... cxd4 {[%clk 0:02:59.2]} 5. Nxd4 {[%clk
0:02:40.7]} 5... a6 {[%clk 0:03:00]} 6. Bg5 {[%clk 0:02:37.7]} 6... e6 {[%clk
0:02:58.2]} 7. f4 {[%clk 0:02:37.2]} 7... Nbd7 {[%clk 0:02:57.8]} 8. Qf3 {[%clk
0:02:32.2]} 8... Qc7 {[%clk 0:02:57.5]} 9. O-O-O {[%clk 0:02:30.4]} 9... b5
{[%clk 0:02:57.6]} 10. e5 {[%clk 0:02:11.9]} 10... Bb7 {[%clk 0:02:54.6]} 11.
Qh3 {[%clk 0:01:23.6]} 11... dxe5 {[%clk 0:02:50.3]} 12. Nxe6 {[%clk 0:01:19.3]}
12... fxe6 {[%clk 0:02:48.7]} 13. Qxe6+ {[%clk 0:01:16.8]} 13... Be7 {[%clk
0:02:48.7]} 14. Bxf6 {[%clk 0:01:10.2]} 14... Nxf6 {[%clk 0:02:30.1]} 15. fxe5
{[%clk 0:01:06.1]} 15... Ne4 {[%clk 0:02:06.8]} 16. Nxb5 {[%clk 0:00:40.9]}
16... Qc5 {[%clk 0:01:51.7]} 17. Nd6+ {[%clk 0:00:24]} 17... Nxd6 {[%clk
0:01:48.2]} 18. exd6 {[%clk 0:00:23.3]} 18... Qg5+ {[%clk 0:01:42.9]} 19. Kb1
{[%clk 0:00:23.3]} 19... Qf6 {[%clk 0:01:27.8]} 20. Qxe7+ {[%clk 0:00:12.5]}
20... Qxe7 {[%clk 0:01:27.3]} 21. dxe7 {[%clk 0:00:12.7]} 21... Kxe7 {[%clk
0:01:28.2]} 22. Bc4 {[%clk 0:00:11.4]} 22... Rhd8 {[%clk 0:01:13.9]} 23. Kc1
{[%clk 0:00:09.9]} 23... Bxg2 {[%clk 0:01:10]} 24. Rxd8 {[%clk 0:00:06.6]} 24...
Rxd8 {[%clk 0:01:03.4]} 25. Rg1 {[%clk 0:00:06.2]} 25... Be4 {[%clk 0:00:55.3]}
26. Rxg7+ {[%clk 0:00:05.8]} 26... Kf6 {[%clk 0:00:55.4]} 27. Rg3 {[%clk
0:00:05.7]} 27... a5 {[%clk 0:00:53.3]} 28. Bd3 {[%clk 0:00:05]} 28... Bd5
{[%clk 0:00:51.3]} 29. Bxh7 {[%clk 0:00:04.7]} 29... Rh8 {[%clk 0:00:51.1]} 30.
Bd3 {[%clk 0:00:04.3]} 30... Rxh2 {[%clk 0:00:50.6]} 31. b3 {[%clk 0:00:04.1]}
31... a4 {[%clk 0:00:46.6]} 32. Kb2 {[%clk 0:00:04.1]} 32... axb3 {[%clk
0:00:46.6]} 33. axb3 {[%clk 0:00:04.4]} 33... Ke5 {[%clk 0:00:46.6]} 34. Rg5+
{[%clk 0:00:03.9]} 34... Kd6 {[%clk 0:00:46.2]} 35. b4 {[%clk 0:00:03.4]} 35...
Be6 {[%clk 0:00:43.1]} 36. Rg6 {[%clk 0:00:03.4]} 36... Ke7 {[%clk 0:00:40.4]}
37. Kc3 {[%clk 0:00:03.4]} 37... Bd7 {[%clk 0:00:39.6]} 38. Rg5 {[%clk
0:00:03.4]} 38... Kd6 {[%clk 0:00:38.1]} 39. Rc5 {[%clk 0:00:03.2]} 39... Bc6
{[%clk 0:00:35]} 40. Kb3 {[%clk 0:00:03.2]} 40... Bd5+ {[%clk 0:00:34.8]} 41. c4
{[%clk 0:00:03.4]} 41... Be6 {[%clk 0:00:31.8]} 42. Kc3 {[%clk 0:00:03.4]} 42...
Rh3 {[%clk 0:00:31.6]} 43. Rg5 {[%clk 0:00:03.4]} 43... Rh1 {[%clk 0:00:19.9]}
44. c5+ {[%clk 0:00:03.6]} 44... Kc7 {[%clk 0:00:19.2]} 45. Rg7+ {[%clk
0:00:03.5]} 45... Kb8 {[%clk 0:00:17.8]} 46. Kd4 {[%clk 0:00:03.6]} 46... Rh4+
{[%clk 0:00:17]} 47. Ke5 {[%clk 0:00:03.3]} 47... Bc8 {[%clk 0:00:13.5]} 48. b5
{[%clk 0:00:03.4]} 48... Rh5+ {[%clk 0:00:13.2]} 49. Kd6 {[%clk 0:00:03.5]}
49... Rh1 {[%clk 0:00:10.6]} 50. Bc4 {[%clk 0:00:03.1]} 50... Rd1+ {[%clk
0:00:10.4]} 51. Bd5 {[%clk 0:00:03.3]} 51... Bf5 {[%clk 0:00:08.7]} 52. c6
{[%clk 0:00:03.2]} 52... Be4 {[%clk 0:00:08.1]} 53. c7+ {[%clk 0:00:03.4]} 53...
Kc8 {[%clk 0:00:05.7]} 54. Rg8# {[%clk 0:00:03.2]} 1-0

[Event "Early-Titled-Tuesday-Blitz-November-28-2023"]
[Site "Chess.com"]
[Date "2023.11.28"]
[Round "9"]
[White "Willi_Skibbe"]
[Black "giomar27"]
[Result "1-0"]
[WhiteElo "2293"]
[BlackElo "2418"]
[TimeControl "180+1"]
[EndTime "9:52:37 PST"]
[Termination "Willi_Skibbe won by resignation"]

1. e4 {[%clk 0:02:59]} 1... e5 {[%clk 0:02:59.8]} 2. Nc3 {[%clk 0:02:56.2]} 2...
Nf6 {[%clk 0:02:56.4]} 3. Bc4 {[%clk 0:02:51]} 3... Nc6 {[%clk 0:02:55.1]} 4. d3
{[%clk 0:02:49.5]} 4... Bc5 {[%clk 0:02:55.1]} 5. Nf3 {[%clk 0:02:36.3]} 5... d6
{[%clk 0:02:52]} 6. Na4 {[%clk 0:02:36.1]} 6... Bb6 {[%clk 0:02:49]} 7. Nxb6
{[%clk 0:02:34.8]} 7... axb6 {[%clk 0:02:49.9]} 8. a3 {[%clk 0:02:33.9]} 8...
O-O {[%clk 0:02:49.8]} 9. h3 {[%clk 0:02:33.2]} 9... Ne7 {[%clk 0:02:49.1]} 10.
Ba2 {[%clk 0:02:30.7]} 10... Ng6 {[%clk 0:02:49.1]} 11. g3 {[%clk 0:02:28.9]}
11... Be6 {[%clk 0:02:42.1]} 12. c4 {[%clk 0:02:27.9]} 12... h6 {[%clk
0:02:33.6]} 13. Kf1 {[%clk 0:02:24.5]} 13... Nd7 {[%clk 0:02:28.3]} 14. Kg2
{[%clk 0:02:20.8]} 14... f5 {[%clk 0:02:28.1]} 15. exf5 {[%clk 0:02:04]} 15...
Rxf5 {[%clk 0:02:23.3]} 16. d4 {[%clk 0:01:59.1]} 16... Qf8 {[%clk 0:02:05.4]}
17. Bb1 {[%clk 0:01:45.4]} 17... Rf6 {[%clk 0:01:59.4]} 18. d5 {[%clk
0:01:43.1]} 18... Bf5 {[%clk 0:01:57.3]} 19. Bxf5 {[%clk 0:01:42.1]} 19... Rxf5
{[%clk 0:01:58.2]} 20. Be3 {[%clk 0:01:42.2]} 20... Nc5 {[%clk 0:01:54.1]} 21.
Bxc5 {[%clk 0:01:38.2]} 21... bxc5 {[%clk 0:01:53.3]} 22. Qe2 {[%clk 0:01:38]}
22... Re8 {[%clk 0:01:36.5]} 23. Rhf1 {[%clk 0:01:16]} 23... e4 {[%clk 0:01:28]}
24. Nd2 {[%clk 0:01:16]} 24... Rg5 {[%clk 0:01:27.6]} 25. Qe3 {[%clk 0:01:08.9]}
25... Nh4+ {[%clk 0:01:08.4]} 26. Kh2 {[%clk 0:01:07]} 26... Nf5 {[%clk
0:01:03.2]} 27. Qf4 {[%clk 0:01:02.3]} 27... Nd4 {[%clk 0:00:52]} 28. Qxf8+
{[%clk 0:01:02.2]} 28... Kxf8 {[%clk 0:00:51.9]} 29. Rae1 {[%clk 0:01:01.4]}
29... Rge5 {[%clk 0:00:48.5]} 30. Re3 {[%clk 0:00:57.3]} 30... Nf5 {[%clk
0:00:46.4]} 31. Rb3 {[%clk 0:00:55.1]} 31... b6 {[%clk 0:00:44.6]} 32. f4 {[%clk
0:00:48.5]} 32... exf3 {[%clk 0:00:40.6]} 33. Rbxf3 {[%clk 0:00:45]} 33... Kg8
{[%clk 0:00:22.6]} 34. Rxf5 {[%clk 0:00:33.4]} 34... Rxf5 {[%clk 0:00:22.9]} 35.
Rxf5 {[%clk 0:00:31.7]} 35... Re2+ {[%clk 0:00:23.5]} 36. Kg1 {[%clk 0:00:32.6]}
36... Rxd2 {[%clk 0:00:23.9]} 37. Rf2 {[%clk 0:00:33.4]} 37... Rd4 {[%clk
0:00:13.8]} 38. Rc2 {[%clk 0:00:33.1]} 38... Kf7 {[%clk 0:00:07.8]} 39. Kf2
{[%clk 0:00:32.9]} 39... Ke7 {[%clk 0:00:07.2]} 40. Ke3 {[%clk 0:00:32.7]} 40...
Kd7 {[%clk 0:00:05.4]} 41. b3 {[%clk 0:00:32.9]} 41... c6 {[%clk 0:00:05.5]} 42.
dxc6+ {[%clk 0:00:31.3]} 42... Kxc6 {[%clk 0:00:06.4]} 43. Rd2 {[%clk
0:00:21.8]} 43... Rxd2 {[%clk 0:00:04.3]} 44. Kxd2 {[%clk 0:00:22.7]} 44... b5
{[%clk 0:00:04.3]} 45. Kc3 {[%clk 0:00:20.4]} 45... Kb6 {[%clk 0:00:04.1]} 46.
Kd3 {[%clk 0:00:19.4]} 46... Ka5 {[%clk 0:00:04]} 47. cxb5 {[%clk 0:00:17]}
47... Kxb5 {[%clk 0:00:03.8]} 48. Ke4 {[%clk 0:00:17.8]} 48... Kc6 {[%clk
0:00:03.8]} 49. a4 {[%clk 0:00:15.8]} 49... d5+ {[%clk 0:00:03.6]} 50. Ke5
{[%clk 0:00:12.4]} 50... d4 {[%clk 0:00:02.2]} 51. Ke4 {[%clk 0:00:12.9]} 51...
Kb6 {[%clk 0:00:02.1]} 52. Kd3 {[%clk 0:00:10.9]} 52... Ka5 {[%clk 0:00:02.8]}
53. Kc4 {[%clk 0:00:11.1]} 53... Kb6 {[%clk 0:00:02.9]} 54. b4 {[%clk
0:00:11.1]} 54... cxb4 {[%clk 0:00:02.9]} 55. Kxb4 {[%clk 0:00:11.6]} 55... d3
{[%clk 0:00:02.5]} 56. Kc3 {[%clk 0:00:12.1]} 56... Ka5 {[%clk 0:00:03.2]} 57.
Kxd3 {[%clk 0:00:12.4]} 57... Kxa4 {[%clk 0:00:04.1]} 58. Ke4 {[%clk 0:00:13.2]}
58... Kb5 {[%clk 0:00:04.4]} 59. Kf5 {[%clk 0:00:14]} 59... g5 {[%clk
0:00:03.8]} 60. Kg6 {[%clk 0:00:13.6]} 60... Kc5 {[%clk 0:00:04.7]} 61. Kxh6
{[%clk 0:00:13.2]} 61... Kd5 {[%clk 0:00:05.6]} 1-0

[Event "Early-Titled-Tuesday-Blitz-November-28-2023"]
[Site "Chess.com"]
[Date "2023.11.28"]
[Round "9"]
[White "Qvalda"]
[Black "kubal123"]
[Result "1/2-1/2"]
[WhiteElo "2435"]
[BlackElo "2544"]
[TimeControl "180+1"]
[EndTime "9:52:39 PST"]
[Termination "Game drawn by repetition"]

1. Nf3 {[%clk 0:03:00.9]} 1... Nf6 {[%clk 0:02:57.6]} 2. g3 {[%clk 0:03:01.4]}
2... g6 {[%clk 0:02:53.7]} 3. b3 {[%clk 0:03:01.7]} 3... Bg7 {[%clk 0:02:54.6]}
4. Bb2 {[%clk 0:03:02.3]} 4... O-O {[%clk 0:02:55.5]} 5. Bg2 {[%clk 0:03:02.5]}
5... c5 {[%clk 0:02:56.2]} 6. c4 {[%clk 0:03:02.5]} 6... Nc6 {[%clk 0:02:57.1]}
7. O-O {[%clk 0:03:02.4]} 7... d6 {[%clk 0:02:56.6]} 8. d4 {[%clk 0:03:02]} 8...
cxd4 {[%clk 0:02:56.4]} 9. Nxd4 {[%clk 0:03:02.9]} 9... Bd7 {[%clk 0:02:56.6]}
10. Nc3 {[%clk 0:03:02.6]} 10... a6 {[%clk 0:02:53.6]} 11. Nxc6 {[%clk
0:02:56.5]} 11... bxc6 {[%clk 0:02:52.9]} 12. c5 {[%clk 0:02:57]} 12... d5
{[%clk 0:02:47.2]} 13. Na4 {[%clk 0:02:56.5]} 13... Qc7 {[%clk 0:02:25.6]} 14.
Nb6 {[%clk 0:02:48.3]} 14... Rad8 {[%clk 0:02:24.9]} 15. Nxd7 {[%clk 0:02:48.3]}
15... Nxd7 {[%clk 0:02:23.2]} 16. Bxg7 {[%clk 0:02:46.3]} 16... Kxg7 {[%clk
0:02:24.1]} 17. b4 {[%clk 0:02:46]} 17... e5 {[%clk 0:02:23]} 18. Qd3 {[%clk
0:02:43.3]} 18... f5 {[%clk 0:02:17.8]} 19. Qxa6 {[%clk 0:02:39.3]} 19... e4
{[%clk 0:02:17.9]} 20. e3 {[%clk 0:02:32.7]} 20... Ne5 {[%clk 0:02:15.9]} 21.
Qe2 {[%clk 0:02:32.1]} 21... g5 {[%clk 0:02:12.2]} 22. a4 {[%clk 0:02:28.6]}
22... f4 {[%clk 0:02:12.2]} 23. exf4 {[%clk 0:02:23.9]} 23... gxf4 {[%clk
0:02:13.1]} 24. gxf4 {[%clk 0:02:23.8]} 24... Rxf4 {[%clk 0:02:11.4]} 25. b5
{[%clk 0:02:18.5]} 25... Rh4 {[%clk 0:02:03.2]} 26. h3 {[%clk 0:02:05.8]} 26...
Rxh3 {[%clk 0:01:42.6]} 27. Bxh3 {[%clk 0:01:23.7]} 27... Nf3+ {[%clk
0:01:19.6]} 28. Qxf3 {[%clk 0:01:24.2]} 28... exf3 {[%clk 0:01:20.2]} 29. Kh1
{[%clk 0:01:20.2]} 29... cxb5 {[%clk 0:01:20.2]} 30. axb5 {[%clk 0:01:16.4]}
30... Qxc5 {[%clk 0:01:19.6]} 31. Rab1 {[%clk 0:01:06]} 31... Rb8 {[%clk
0:01:13.7]} 32. Bg4 {[%clk 0:00:49.9]} 32... Rxb5 {[%clk 0:00:51.3]} 33. Bxf3
{[%clk 0:00:46.2]} 33... Rxb1 {[%clk 0:00:50.4]} 34. Rxb1 {[%clk 0:00:47.1]}
34... Qxf2 {[%clk 0:00:50.2]} 35. Bxd5 {[%clk 0:00:41.2]} 35... Qh4+ {[%clk
0:00:50.3]} 36. Kg1 {[%clk 0:00:39.2]} 36... Qg5+ {[%clk 0:00:50.2]} 37. Bg2
{[%clk 0:00:38.1]} 37... Qe3+ {[%clk 0:00:47.2]} 38. Kh1 {[%clk 0:00:33.8]}
38... h6 {[%clk 0:00:45]} 39. Rf1 {[%clk 0:00:32]} 39... Kg6 {[%clk 0:00:43.3]}
40. Rf3 {[%clk 0:00:32.1]} 40... Qe1+ {[%clk 0:00:42.7]} 41. Kh2 {[%clk
0:00:31.9]} 41... Qe5+ {[%clk 0:00:42.2]} 42. Kg1 {[%clk 0:00:31.5]} 42... Kg5
{[%clk 0:00:40.3]} 43. Rh3 {[%clk 0:00:31.5]} 43... Qe1+ {[%clk 0:00:37.4]} 44.
Kh2 {[%clk 0:00:30.8]} 44... Qf2 {[%clk 0:00:36]} 45. Rf3 {[%clk 0:00:30.4]}
45... Qh4+ {[%clk 0:00:35.6]} 46. Kg1 {[%clk 0:00:30.5]} 46... Qd4+ {[%clk
0:00:35.2]} 47. Kh2 {[%clk 0:00:30.5]} 47... Qe5+ {[%clk 0:00:32.7]} 48. Kg1
{[%clk 0:00:30.1]} 48... Kg4 {[%clk 0:00:31.6]} 49. Rh3 {[%clk 0:00:29.9]} 49...
Qe1+ {[%clk 0:00:30.4]} 50. Kh2 {[%clk 0:00:29.7]} 50... Qe5+ {[%clk 0:00:25.1]}
51. Kg1 {[%clk 0:00:29.8]} 51... h5 {[%clk 0:00:17.7]} 52. Rf3 {[%clk
0:00:28.6]} 52... Qe1+ {[%clk 0:00:17.2]} 53. Kh2 {[%clk 0:00:28.2]} 53... Qe5+
{[%clk 0:00:17.8]} 54. Kg1 {[%clk 0:00:28]} 54... Qc5+ {[%clk 0:00:18.1]} 55.
Kh2 {[%clk 0:00:27.8]} 55... Qd6+ {[%clk 0:00:18.7]} 56. Kg1 {[%clk 0:00:27.7]}
56... h4 {[%clk 0:00:19.3]} 57. Rh3 {[%clk 0:00:27.3]} 57... Qd1+ {[%clk
0:00:18.9]} 58. Kh2 {[%clk 0:00:27.3]} 58... Qd6+ {[%clk 0:00:19.6]} 59. Kg1
{[%clk 0:00:27.4]} 59... Qe5 {[%clk 0:00:19.7]} 60. Rf3 {[%clk 0:00:26.9]} 60...
Qe1+ {[%clk 0:00:19.3]} 61. Kh2 {[%clk 0:00:27]} 61... Qd2 {[%clk 0:00:18.8]}
62. Rh3 {[%clk 0:00:26.1]} 62... Qf4+ {[%clk 0:00:18.6]} 63. Kg1 {[%clk
0:00:25.8]} 63... Qc1+ {[%clk 0:00:16.7]} 64. Kh2 {[%clk 0:00:25.6]} 64... Qc7+
{[%clk 0:00:16.6]} 65. Kg1 {[%clk 0:00:25.4]} 65... Qd6 {[%clk 0:00:13.8]} 66.
Rf3 {[%clk 0:00:25.1]} 66... Qe5 {[%clk 0:00:13.2]} 67. Rh3 {[%clk 0:00:24.9]}
67... Qe1+ {[%clk 0:00:12.9]} 68. Kh2 {[%clk 0:00:25.1]} 68... Qe5+ {[%clk
0:00:10.2]} 69. Kg1 {[%clk 0:00:25.2]} 69... Qa1+ {[%clk 0:00:09.8]} 70. Kh2
{[%clk 0:00:25.3]} 70... Qe5+ {[%clk 0:00:10.4]} 71. Kg1 {[%clk 0:00:25.5]}
1/2-1/2

[Event "Early-Titled-Tuesday-Blitz-November-28-2023"]
[Site "Chess.com"]
[Date "2023.11.28"]
[Round "9"]
[White "Burovic00"]
[Black "Actuary44"]
[Result "1-0"]
[WhiteElo "2571"]
[BlackElo "2442"]
[TimeControl "180+1"]
[EndTime "9:52:41 PST"]
[Termination "Burovic00 won on time"]

1. e4 {[%clk 0:03:00.9]} 1... b6 {[%clk 0:03:00]} 2. Nc3 {[%clk 0:02:55.1]} 2...
Bb7 {[%clk 0:03:00.6]} 3. g3 {[%clk 0:02:55.6]} 3... e6 {[%clk 0:03:01.3]} 4.
Bg2 {[%clk 0:02:55.8]} 4... Nf6 {[%clk 0:03:02.1]} 5. d3 {[%clk 0:02:56.2]} 5...
d5 {[%clk 0:03:02.8]} 6. Nf3 {[%clk 0:02:55.5]} 6... d4 {[%clk 0:03:00.4]} 7.
Ne2 {[%clk 0:02:54.4]} 7... c5 {[%clk 0:03:00.2]} 8. O-O {[%clk 0:02:54.5]} 8...
Be7 {[%clk 0:03:00.2]} 9. Ne1 {[%clk 0:02:44.7]} 9... Nc6 {[%clk 0:03:00.2]} 10.
f4 {[%clk 0:02:44.3]} 10... Qc7 {[%clk 0:03:00.2]} 11. Nf3 {[%clk 0:02:40.3]}
11... O-O-O {[%clk 0:02:58.2]} 12. h3 {[%clk 0:02:39.6]} 12... h6 {[%clk
0:02:57.5]} 13. g4 {[%clk 0:02:25.4]} 13... Nd7 {[%clk 0:02:55.5]} 14. c3 {[%clk
0:02:16.7]} 14... dxc3 {[%clk 0:02:50.4]} 15. bxc3 {[%clk 0:02:17.6]} 15... f6
{[%clk 0:02:50.2]} 16. Be3 {[%clk 0:02:17.2]} 16... g5 {[%clk 0:02:49.8]} 17. d4
{[%clk 0:01:40.2]} 17... gxf4 {[%clk 0:02:39.3]} 18. Nxf4 {[%clk 0:01:37.4]}
18... Nf8 {[%clk 0:02:37.6]} 19. d5 {[%clk 0:01:34.3]} 19... Ne5 {[%clk
0:02:22.1]} 20. Nxe5 {[%clk 0:01:21.7]} 20... fxe5 {[%clk 0:02:23]} 21. Nh5
{[%clk 0:01:22.2]} 21... exd5 {[%clk 0:02:10.7]} 22. exd5 {[%clk 0:01:23.1]}
22... Ne6 {[%clk 0:02:04.5]} 23. Rf7 {[%clk 0:01:05.1]} 23... Rd6 {[%clk
0:01:46.8]} 24. c4 {[%clk 0:00:36.4]} 24... Nd4 {[%clk 0:01:37.4]} 25. Qa4
{[%clk 0:00:36.3]} 25... Kb8 {[%clk 0:01:26.3]} 26. Raf1 {[%clk 0:00:35.3]}
26... b5 {[%clk 0:01:04.8]} 27. cxb5 {[%clk 0:00:32]} 27... Ne2+ {[%clk
0:00:58.5]} 28. Kh1 {[%clk 0:00:28]} 28... Rxd5 {[%clk 0:00:55.2]} 29. Qe4
{[%clk 0:00:20.1]} 29... Nc3 {[%clk 0:00:36.1]} 30. Qg6 {[%clk 0:00:20]} 30...
Rhd8 {[%clk 0:00:29.9]} 31. Qg7 {[%clk 0:00:19.9]} 31... R5d7 {[%clk 0:00:28.3]}
32. Qxh6 {[%clk 0:00:14.4]} 32... Bxg2+ {[%clk 0:00:26.8]} 33. Kxg2 {[%clk
0:00:15.3]} 33... Rd6 {[%clk 0:00:25.5]} 34. Qh7 {[%clk 0:00:11.6]} 34... Qb7+
{[%clk 0:00:25.8]} 35. Kh2 {[%clk 0:00:11.2]} 35... R6d7 {[%clk 0:00:24.1]} 36.
Qc2 {[%clk 0:00:09.1]} 36... Nd5 {[%clk 0:00:23.7]} 37. Bc1 {[%clk 0:00:08.5]}
37... Nb4 {[%clk 0:00:20.9]} 38. Qg2 {[%clk 0:00:07.8]} 38... Qxg2+ {[%clk
0:00:18]} 39. Kxg2 {[%clk 0:00:08.7]} 39... Bh4 {[%clk 0:00:16]} 40. Rxd7 {[%clk
0:00:07.5]} 40... Rxd7 {[%clk 0:00:16.9]} 41. a4 {[%clk 0:00:08.1]} 41... Nc2
{[%clk 0:00:13.5]} 42. Nf6 {[%clk 0:00:07.5]} 42... Rd4 {[%clk 0:00:13.2]} 43.
Nh5 {[%clk 0:00:04.1]} 43... Rxa4 {[%clk 0:00:12.9]} 44. Ng3 {[%clk 0:00:03.8]}
44... Ra2 {[%clk 0:00:11.6]} 45. Rf2 {[%clk 0:00:03.7]} 45... Nb4 {[%clk
0:00:11.3]} 46. Rxa2 {[%clk 0:00:03.5]} 46... Nxa2 {[%clk 0:00:12.2]} 47. Nf5
{[%clk 0:00:04.2]} 47... Bd8 {[%clk 0:00:11.2]} 48. Bb2 {[%clk 0:00:04.6]} 48...
e4 {[%clk 0:00:10.8]} 49. Kf2 {[%clk 0:00:04.2]} 49... Kb7 {[%clk 0:00:09.6]}
50. Ke3 {[%clk 0:00:04.5]} 50... Kb6 {[%clk 0:00:10.2]} 51. Nd6 {[%clk
0:00:04.1]} 51... Bc7 {[%clk 0:00:08.4]} 52. Nxe4 {[%clk 0:00:04.3]} 52... Kxb5
{[%clk 0:00:08.6]} 53. g5 {[%clk 0:00:05]} 53... c4 {[%clk 0:00:05.8]} 54. g6
{[%clk 0:00:05.1]} 54... Bb6+ {[%clk 0:00:06.5]} 55. Kd2 {[%clk 0:00:04]} 55...
c3+ {[%clk 0:00:05.4]} 56. Bxc3 {[%clk 0:00:04.6]} 56... Nxc3 {[%clk 0:00:04.4]}
57. Kxc3 {[%clk 0:00:05.5]} 57... Bc7 {[%clk 0:00:04.7]} 58. Kd4 {[%clk
0:00:06]} 58... Bb6+ {[%clk 0:00:04]} 59. Kd5 {[%clk 0:00:06.4]} 1-0

[Event "Early-Titled-Tuesday-Blitz-November-28-2023"]
[Site "Chess.com"]
[Date "2023.11.28"]
[Round "9"]
[White "Gabrielian_Artur"]
[Black "NovoselovRoman"]
[Result "1-0"]
[WhiteElo "2723"]
[BlackElo "2549"]
[TimeControl "180+1"]
[EndTime "9:52:42 PST"]
[Termination "Gabrielian_Artur won on time"]

1. e4 {[%clk 0:03:00.9]} 1... e6 {[%clk 0:02:59.1]} 2. d4 {[%clk 0:03:00.7]}
2... d5 {[%clk 0:02:59]} 3. Nc3 {[%clk 0:03:00.9]} 3... Nf6 {[%clk 0:02:57.1]}
4. Bg5 {[%clk 0:03:00.7]} 4... dxe4 {[%clk 0:02:53.5]} 5. Nxe4 {[%clk
0:03:00.4]} 5... Be7 {[%clk 0:02:53.2]} 6. Nxf6+ {[%clk 0:03:00.2]} 6... Bxf6
{[%clk 0:02:53.3]} 7. Bxf6 {[%clk 0:03:00.5]} 7... Qxf6 {[%clk 0:02:53.9]} 8.
Nf3 {[%clk 0:03:00.9]} 8... Nd7 {[%clk 0:02:51.4]} 9. Qd3 {[%clk 0:03:01]} 9...
O-O {[%clk 0:02:48.5]} 10. Qe4 {[%clk 0:03:00]} 10... Rd8 {[%clk 0:02:35.3]} 11.
Bd3 {[%clk 0:02:59]} 11... Nf8 {[%clk 0:02:34.7]} 12. O-O-O {[%clk 0:02:58]}
12... Ng6 {[%clk 0:02:17.4]} 13. g3 {[%clk 0:02:52.1]} 13... Rb8 {[%clk
0:02:10.8]} 14. h4 {[%clk 0:02:50.4]} 14... b6 {[%clk 0:02:06.2]} 15. Qe3 {[%clk
0:02:37.8]} 15... Bb7 {[%clk 0:01:59.7]} 16. Be4 {[%clk 0:02:38]} 16... Bxe4
{[%clk 0:01:54.8]} 17. Qxe4 {[%clk 0:02:38.3]} 17... Rd5 {[%clk 0:01:48.4]} 18.
Rd3 {[%clk 0:02:24.8]} 18... Rbd8 {[%clk 0:01:44.4]} 19. Rhd1 {[%clk 0:02:24]}
19... a5 {[%clk 0:01:38.7]} 20. a3 {[%clk 0:02:04.1]} 20... h6 {[%clk
0:01:33.2]} 21. Qe3 {[%clk 0:02:01.9]} 21... Rf5 {[%clk 0:01:09.7]} 22. Nd2
{[%clk 0:01:59.3]} 22... Ne7 {[%clk 0:00:59.7]} 23. Ne4 {[%clk 0:01:57.6]} 23...
Qg6 {[%clk 0:00:57]} 24. c4 {[%clk 0:01:51.3]} 24... b5 {[%clk 0:00:50.8]} 25.
c5 {[%clk 0:01:48.3]} 25... Rfd5 {[%clk 0:00:44.9]} 26. Nc3 {[%clk 0:01:44.2]}
26... Nf5 {[%clk 0:00:42.7]} 27. Nxd5 {[%clk 0:01:39.1]} 27... Nxe3 {[%clk
0:00:32.3]} 28. Ne7+ {[%clk 0:01:39.1]} 28... Kh7 {[%clk 0:00:32.8]} 29. Nxg6
{[%clk 0:01:39.4]} 29... Nxd1 {[%clk 0:00:33.3]} 30. Nf8+ {[%clk 0:01:22.5]}
30... Rxf8 {[%clk 0:00:30.4]} 31. Kxd1 {[%clk 0:01:22.3]} 31... c6 {[%clk
0:00:29.1]} 32. Ke2 {[%clk 0:01:21.3]} 32... Rd8 {[%clk 0:00:28.9]} 33. Ke3
{[%clk 0:01:21.4]} 33... Kg6 {[%clk 0:00:26.4]} 34. Ke4 {[%clk 0:01:21]} 34...
Rd5 {[%clk 0:00:25.7]} 35. b4 {[%clk 0:01:18.9]} 35... a4 {[%clk 0:00:25]} 36.
g4 {[%clk 0:01:17]} 36... h5 {[%clk 0:00:23]} 37. f3 {[%clk 0:01:17]} 37... hxg4
{[%clk 0:00:18.6]} 38. fxg4 {[%clk 0:01:17.1]} 38... f6 {[%clk 0:00:18.4]} 39.
Ke3 {[%clk 0:00:50.2]} 39... Rd8 {[%clk 0:00:17.2]} 40. Rd2 {[%clk 0:00:47.2]}
40... Rh8 {[%clk 0:00:16.9]} 41. Rh2 {[%clk 0:00:46.5]} 41... Kf7 {[%clk
0:00:15.8]} 42. h5 {[%clk 0:00:44.5]} 42... Rd8 {[%clk 0:00:11]} 43. Ke4 {[%clk
0:00:43.7]} 43... Rd5 {[%clk 0:00:10.2]} 44. h6 {[%clk 0:00:40.5]} 44... gxh6
{[%clk 0:00:10.2]} 45. Rxh6 {[%clk 0:00:41.1]} 45... Kg7 {[%clk 0:00:10.8]} 46.
Rh2 {[%clk 0:00:37.9]} 46... Rg5 {[%clk 0:00:10.6]} 47. Kf3 {[%clk 0:00:37.6]}
47... Rd5 {[%clk 0:00:10.8]} 48. Re2 {[%clk 0:00:37.7]} 48... Kg6 {[%clk
0:00:10.7]} 49. Rxe6 {[%clk 0:00:37.4]} 49... Rxd4 {[%clk 0:00:10.7]} 50. Rxc6
{[%clk 0:00:34]} 50... Rd3+ {[%clk 0:00:10.7]} 51. Ke4 {[%clk 0:00:30.7]} 51...
Rxa3 {[%clk 0:00:11.3]} 52. Rb6 {[%clk 0:00:31.1]} 52... Rg3 {[%clk 0:00:05.4]}
53. Rxb5 {[%clk 0:00:28.4]} 53... Rxg4+ {[%clk 0:00:05.3]} 54. Kd5 {[%clk
0:00:28.7]} 54... f5 {[%clk 0:00:03.4]} 55. c6 {[%clk 0:00:28.5]} 55... Kf6
{[%clk 0:00:01.5]} 56. c7 {[%clk 0:00:28.2]} 56... Rg8 {[%clk 0:00:01.8]} 57.
Rb8 {[%clk 0:00:28.3]} 1-0